fUSD/lending_fUSD_20241104
["ID","MTS","AMOUNT","RATE_DAILY","PERIOD"]
[341296840,1730742717878,-796.06,0.00037808,2]
[341296841,1730742717887,-1490.66,0.00037808,2]
[341296842,1730742717898,-1020.75,0.00037808,2]
[341296843,1730742717907,-151.0,0.00037808,7]
[341296844,1730742717917,-940.86,0.00037808,2]
[341296845,1730742717927,-151.0,0.00037808,7]
[341296846,1730742717936,-562.81,0.00037808,2]
[341296847,1730742717947,-582.98,0.00037808,2]
[341296848,1730742717957,-806.05,0.00037808,2]
[341296849,1730742717968,-1395.9,0.00037808,2]
[341296850,1730742717978,-543.31,0.00037808,2]
[341296851,1730742717988,-500.0,0.00037808,2]
[341296852,1730742717998,-757.63,0.00037808,2]
[341296853,1730742718007,-151.0,0.00037808,7]
[341296854,1730742718018,-594.4,0.00037808,2]
[341296855,1730742718028,-500.0,0.00037808,2]
[341296856,1730742718038,-195.18,0.00037808,2]
[341296857,1730742718048,-856.45,0.00037808,2]
[341296858,1730742718058,-951.82,0.00037808,2]
[341296859,1730742718068,-500.0,0.00037808,2]
[341296860,1730742718076,-500.0,0.00037808,2]
[341296861,1730742718087,-515.42,0.00037808,2]
[341296862,1730742718097,-500.0,0.00037808,2]
[341296863,1730742718107,-500.0,0.00037808,2]
[341296864,1730742718116,-500.0,0.00037808,2]
[341296865,1730742718126,-1338.47,0.00037808,2]
[341296866,1730742718136,-1030.08,0.00037808,2]
[341296867,1730742718147,-1486.93,0.00037808,2]
[341296868,1730742718156,-1253.18,0.00037808,2]
[341296869,1730742718166,-733.3,0.00037808,2]
[341296870,1730742718175,-454.48,0.00037808,2]
[341296871,1730742718185,-650.17,0.00037808,2]
[341296872,1730742718195,-204.75,0.00037808,2]
[341296873,1730742718209,-448.6,0.00037808,2]
[341296874,1730742718218,-807.65,0.00037808,2]
[341296875,1730742718227,-528.38,0.0003808,2]
[341296876,1730742718237,-723.76,0.0003808,2]
[341296877,1730742718246,-1062.99,0.0003808,2]
[341296878,1730742718255,-508.17,0.0003808,2]
[341296879,1730742718264,-903.75,0.0003808,2]
[341296880,1730742718274,-172.130372,0.00038082,2]
[341296881,1730742718283,-515.07,0.00038082,2]
[341296882,1730742718293,-715.3,0.00038082,2]
[341296883,1730742718302,-575.14,0.00038082,2]
[341296884,1730742718311,-652.56,0.00038082,2]
[341296885,1730742718320,-500.0,0.00038082,2]
[341296886,1730742718330,-535.06,0.00038082,2]
[341296887,1730742718339,-600.68,0.00038082,2]
[341296888,1730742718349,-611.09,0.00038082,2]
[341296889,1730742718358,-781.33,0.00038082,2]
[341296890,1730742718369,-698.73,0.00038082,2]
[341296891,1730742718379,-557.68,0.00038082,2]
[341296892,1730742718388,-1417.47,0.00038082,2]
[341296893,1730742718398,-826.6,0.00038082,2]
[341296894,1730742718409,-914.52,0.00038082,2]
[341296895,1730742718419,-574.52,0.00038082,2]
[341296896,1730742718430,-293.89,0.00038082,2]
[341296897,1730742718441,-2019.64,0.00038082,2]
[341296898,1730742718451,-339.27,0.00038082,2]
[341296899,1730742718460,-2888.83,0.00038082,2]
[341296900,1730742718469,-500.0,0.00038082,2]
[341296901,1730742718478,-500.0,0.00038082,2]
[341296902,1730742718488,-500.0,0.00038082,2]
[341296903,1730742718498,-500.0,0.00038082,2]
[341296904,1730742718507,-500.0,0.00038082,2]
[341296905,1730742718516,-670.23,0.00038082,2]
[341296906,1730742718526,-808.56,0.00038082,2]
[341296907,1730742718535,-500.0,0.00038082,2]
[341296908,1730742718544,-772.27,0.00038082,2]
[341296909,1730742718554,-1796.31,0.00038082,2]
[341296910,1730742718564,-892.76,0.00038082,2]
[341296911,1730742718572,-1079.31,0.00038082,2]
[341296912,1730742718582,-1578.1,0.00038082,2]
[341296913,1730742718591,-548.32,0.00038082,2]
[341296914,1730742718601,-500.0,0.00038082,2]
[341296915,1730742718610,-456.11612156,0.00038082,2]
[341296916,1730742718619,-648.18,0.00038082,2]
[341296917,1730742718629,-1746.57,0.00038082,2]
[341296918,1730742718639,-584.05,0.00038082,2]
[341296919,1730742718648,-874.94,0.00038082,2]
[341296920,1730742718658,-500.0,0.00038082,2]
[341296921,1730742718667,-1114.7,0.00038082,2]
[341296922,1730742718678,-749.38,0.00038082,2]
[341296923,1730742718688,-514.3,0.00038082,2]
[341296924,1730742718702,-686.19,0.00038082,2]
[341296925,1730742718711,-500.0,0.00038082,2]
[341296926,1730742718720,-937.69,0.00038082,2]
[341296927,1730742718729,-951.16,0.00038082,2]
[341296928,1730742718739,-796.06,0.00038082,2]
[341296929,1730742718748,-1490.66,0.00038082,2]
[341296930,1730742718757,-1020.75,0.00038082,2]
[341296931,1730742718766,-940.86,0.00038082,2]
[341296932,1730742718775,-562.81,0.00038082,2]
[341296933,1730742718784,-582.98,0.00038082,2]
[341296934,1730742718794,-806.05,0.00038082,2]
[341296935,1730742718803,-1395.9,0.00038082,2]
[341296936,1730742718813,-543.31,0.00038082,2]
[341296937,1730742718822,-500.0,0.00038082,2]
[341296938,1730742718832,-757.63,0.00038082,2]
[341296939,1730742718841,-594.4,0.00038082,2]
[341296940,1730742718851,-500.0,0.00038082,2]
[341296941,1730742718860,-856.45,0.00038082,2]
[341296942,1730742718873,-951.82,0.00038082,2]
[341296943,1730742718882,-500.0,0.00038082,2]
[341296944,1730742718892,-500.0,0.00038082,2]
[341296945,1730742719041,-515.42,0.00038082,2]
[341296946,1730742719053,-500.0,0.00038082,2]
[341296947,1730742719063,-191.55,0.00038082,2]
[341296948,1730742719074,-500.0,0.00038082,2]
[341296949,1730742719085,-1338.47,0.00038082,2]
[341296950,1730742719095,-1030.08,0.00038082,2]
[341296951,1730742719106,-1486.93,0.00038082,2]
[341296952,1730742719118,-1253.18,0.00038082,2]
[341296953,1730742719130,-733.3,0.00038082,2]
[341296954,1730742719140,-650.17,0.00038082,2]
[341296955,1730742719150,-807.65,0.00038082,2]
[341296956,1730742719162,-170.09,0.000382,31]
[341296957,1730742719174,-170.09,0.000382,31]
[341296958,1730742719184,-170.09,0.000382,31]
[341296959,1730742719195,-170.09,0.000382,31]
[341296960,1730742719205,-170.09,0.000382,31]
[341296961,1730742719214,-170.09,0.000382,31]
[341296962,1730742719224,-170.09,0.000382,31]
[341296963,1730742719236,-170.09,0.000382,31]
[341296964,1730742719247,-170.09,0.000382,31]
[341296965,1730742719257,-170.09,0.000382,31]
[341296966,1730742719268,-170.09,0.000382,31]
[341296967,1730742719280,-170.09,0.000382,31]
[341296968,1730742719290,-170.09,0.000382,31]
[341296969,1730742719299,-170.09,0.000382,31]
[341296970,1730742719309,-170.09,0.000382,31]
[341296971,1730742719319,-170.09,0.000382,31]
[341296972,1730742719329,-170.09,0.000382,31]
[341296973,1730742719340,-170.09,0.000382,31]
[341296974,1730742719351,-170.09,0.000382,31]
[341296975,1730742719362,-170.09,0.000382,31]
[341296976,1730742719372,-170.09,0.000382,31]
[341296977,1730742719383,-170.09,0.000382,31]
[341296978,1730742719394,-170.09,0.000382,31]
[341296979,1730742719405,-170.09,0.000382,31]
[341296980,1730742719415,-315.36759368,0.0003827,2]
[341296981,1730742719425,-155.01,0.0003833,120]
[341296982,1730742719435,-150.5,0.0003833,30]
[341296983,1730742719446,-150.5,0.0003834,120]
[341296984,1730742719455,-150.5,0.0003834,30]
[341296985,1730742719464,-150.5,0.0003835,120]
[341296986,1730742719473,-150.5,0.0003835,30]
[341296987,1730742719483,-528.38,0.00038353,2]
[341296988,1730742719492,-723.76,0.00038353,2]
[341296989,1730742719501,-1062.99,0.00038353,2]
[341296990,1730742719511,-508.17,0.00038353,2]
[341296991,1730742719520,-903.75,0.00038353,2]
[341296992,1730742719529,-515.07,0.00038356,2]
[341296993,1730742719539,-715.3,0.00038356,2]
[341296994,1730742719549,-575.14,0.00038356,2]
[341296995,1730742719558,-652.56,0.00038356,2]
[341296996,1730742719570,-493.21529155,0.00038356,2]
[341296997,1730742719580,-535.06,0.00038356,2]
[341296998,1730742719590,-600.68,0.00038356,2]
[341296999,1730742719600,-611.09,0.00038356,2]
[341297000,1730742719611,-781.33,0.00038356,2]
[341297001,1730742719620,-698.73,0.00038356,2]
[341297002,1730742719630,-557.68,0.00038356,2]
[341297003,1730742719641,-1417.47,0.00038356,2]
[341297004,1730742719651,-826.6,0.00038356,2]
[341297005,1730742719662,-914.52,0.00038356,2]
[341297006,1730742719674,-574.52,0.00038356,2]
[341297007,1730742719685,-293.89,0.00038356,2]
[341297008,1730742719696,-2019.64,0.00038356,2]
[341297009,1730742719705,-2888.83,0.00038356,2]
[341297010,1730742719715,-257.37048621,0.00038356,2]
[341297011,1730742719724,-500.0,0.00038356,2]
[341297012,1730742719733,-197.97,0.00038356,2]
[341297013,1730742719743,-500.0,0.00038356,2]
[341297014,1730742719753,-500.0,0.00038356,2]
[341297015,1730742719762,-670.23,0.00038356,2]
[341297016,1730742719772,-808.56,0.00038356,2]
[341297017,1730742719781,-500.0,0.00038356,2]
[341297018,1730742719791,-772.27,0.00038356,2]
[341297019,1730742719800,-1796.31,0.00038356,2]
[341297020,1730742719809,-892.76,0.00038356,2]
[341297021,1730742719818,-1079.31,0.00038356,2]
[341297022,1730742719827,-1578.1,0.00038356,2]
[341297023,1730742719837,-548.32,0.00038356,2]
[341297024,1730742719846,-176.31,0.00038356,2]
[341297025,1730742719856,-648.18,0.00038356,2]
[341297026,1730742719868,-1746.57,0.00038356,2]
[341297027,1730742719877,-584.05,0.00038356,2]
[341297028,1730742719887,-151.0,0.00038356,7]
[341297029,1730742719896,-874.94,0.00038356,2]
[341297030,1730742719906,-500.0,0.00038356,2]
[341297031,1730742719915,-151.0,0.00038356,7]
[341297032,1730742719925,-1114.7,0.00038356,2]
[341297033,1730742719934,-749.38,0.00038356,2]
[341297034,1730742719946,-514.3,0.00038356,2]
[341297035,1730742719955,-999.0,0.00038356,120]
[341297036,1730742719964,-686.19,0.00038356,2]
[341297037,1730742719973,-500.0,0.00038356,2]
[341297038,1730742719982,-937.69,0.00038356,2]
[341297039,1730742719991,-951.16,0.00038356,2]
[341297040,1730742720000,-151.0,0.00038356,7]
[341297041,1730742720010,-796.06,0.00038356,2]
[341297042,1730742720019,-500.0,0.00038356,2]
[341297043,1730742720028,-500.0,0.00038356,2]
[341297044,1730742720037,-500.0,0.00038356,2]
[341297045,1730742720047,-500.0,0.00038356,2]
[341297046,1730742720056,-500.0,0.00038356,2]
[341297047,1730742720065,-500.0,0.00038356,2]
[341297048,1730742720074,-500.0,0.00038356,2]
[341297049,1730742720083,-500.0,0.00038356,2]
[341297050,1730742720092,-500.0,0.00038356,2]
[341297051,1730742720101,-1490.66,0.00038356,2]
[341297052,1730742720110,-500.0,0.00038356,2]
[341297053,1730742720119,-500.0,0.00038356,2]
[341297054,1730742720128,-500.0,0.00038356,2]
[341297055,1730742720137,-500.0,0.00038356,2]
[341297056,1730742720146,-500.0,0.00038356,2]
[341297057,1730742720155,-535.4,0.00038356,2]
[341297058,1730742720164,-1020.75,0.00038356,2]
[341297059,1730742720173,-940.86,0.00038356,2]
[341297060,1730742720183,-562.81,0.00038356,2]
[341297061,1730742720192,-582.98,0.00038356,2]
[341297062,1730742720202,-806.05,0.00038356,2]
[341297063,1730742720212,-1395.9,0.00038356,2]
[341297064,1730742720221,-543.31,0.00038356,2]
[341297065,1730742720231,-294.31352534,0.00038356,2]
[341297066,1730742720240,-757.63,0.00038356,2]
[341297067,1730742720249,-594.4,0.00038356,2]
[341297068,1730742720258,-500.0,0.00038356,2]
[341297069,1730742720267,-856.45,0.00038356,2]
[341297070,1730742720277,-951.82,0.00038356,2]
[341297071,1730742720286,-500.0,0.00038356,2]
[341297072,1730742720295,-500.0,0.00038356,2]
[341297073,1730742720305,-515.42,0.00038356,2]
[341297074,1730742720314,-500.0,0.00038356,2]
[341297075,1730742720323,-500.0,0.00038356,2]
[341297076,1730742720332,-1338.47,0.00038356,2]
[341297077,1730742720341,-1030.08,0.00038356,2]
[341297078,1730742720351,-1486.93,0.00038356,2]
[341297079,1730742720360,-1253.18,0.00038356,2]
[341297080,1730742720369,-733.3,0.00038356,2]
[341297081,1730742720378,-650.17,0.00038356,2]
[341297082,1730742720386,-807.65,0.00038356,2]
[341297083,1730742720396,-528.38,0.00038627,2]
[341297084,1730742720405,-723.76,0.00038627,2]
[341297085,1730742720414,-1062.99,0.00038627,2]
[341297086,1730742720423,-508.17,0.00038627,2]
[341297087,1730742720432,-903.75,0.00038627,2]
[341297088,1730742720442,-515.07,0.0003863,2]
[341297089,1730742720451,-715.3,0.0003863,2]
[341297090,1730742720461,-575.14,0.0003863,2]
[341297091,1730742720470,-652.56,0.0003863,2]
[341297092,1730742720479,-535.06,0.0003863,2]
[341297093,1730742720488,-600.68,0.0003863,2]
[341297094,1730742720498,-611.09,0.0003863,2]
[341297095,1730742720507,-781.33,0.0003863,2]
[341297096,1730742720516,-698.73,0.0003863,2]
[341297097,1730742720525,-557.68,0.0003863,2]
[341297098,1730742720534,-1417.47,0.0003863,2]
[341297099,1730742720543,-826.6,0.0003863,2]
[341297100,1730742720552,-914.52,0.0003863,2]
[341297101,1730742720561,-574.52,0.0003863,2]
[341297102,1730742720570,-293.89,0.0003863,2]
[341297103,1730742720579,-2019.64,0.0003863,2]
[341297104,1730742720589,-2888.83,0.0003863,2]
[341297105,1730742720598,-500.0,0.0003863,2]
[341297106,1730742720607,-500.0,0.0003863,2]
[341297107,1730742720616,-205.14,0.0003863,2]
[341297108,1730742720625,-670.23,0.0003863,2]
[341297109,1730742720635,-808.56,0.0003863,2]
[341297110,1730742720644,-500.0,0.0003863,2]
[341297111,1730742720653,-772.27,0.0003863,2]
[341297112,1730742720663,-1796.31,0.0003863,2]
[341297113,1730742720672,-892.76,0.0003863,2]
[341297114,1730742720681,-1079.31,0.0003863,2]
[341297115,1730742720691,-1578.1,0.0003863,2]
[341297116,1730742720700,-548.32,0.0003863,2]
[341297117,1730742720709,-648.18,0.0003863,2]
[341297118,1730742720718,-1746.57,0.0003863,2]
[341297119,1730742720727,-584.05,0.0003863,2]
[341297120,1730742720737,-874.94,0.0003863,2]
[341297121,1730742720746,-215.08,0.0003863,2]
[341297122,1730742720755,-1114.7,0.0003863,2]
[341297123,1730742720765,-749.38,0.0003863,2]
[341297124,1730742720774,-514.3,0.0003863,2]
[341297125,1730742720783,-686.19,0.0003863,2]
[341297126,1730742720792,-322.43,0.0003863,2]
[341297127,1730742720801,-937.69,0.0003863,2]
[341297128,1730742720810,-951.16,0.0003863,2]
[341297129,1730742720820,-796.06,0.0003863,2]
[341297130,1730742720829,-1490.66,0.0003863,2]
[341297131,1730742720838,-1020.75,0.0003863,2]
[341297132,1730742720847,-940.86,0.0003863,2]
[341297133,1730742720857,-562.81,0.0003863,2]
[341297134,1730742720868,-582.98,0.0003863,2]
[341297135,1730742720879,-806.05,0.0003863,2]
[341297136,1730742720888,-1395.9,0.0003863,2]
[341297137,1730742720898,-543.31,0.0003863,2]
[341297138,1730742720907,-757.63,0.0003863,2]
[341297139,1730742720916,-594.4,0.0003863,2]
[341297140,1730742720925,-636.22557651,0.0003863,2]
[341297141,1730742720934,-856.45,0.0003863,2]
[341297142,1730742720944,-951.82,0.0003863,2]
[341297143,1730742720954,-500.0,0.0003863,2]
[341297144,1730742720963,-500.0,0.0003863,2]
[341297145,1730742720973,-515.42,0.0003863,2]
[341297146,1730742720983,-500.0,0.0003863,2]
[341297147,1730742720991,-500.0,0.0003863,2]
[341297148,1730742721001,-1338.47,0.0003863,2]
[341297149,1730742721010,-1030.08,0.0003863,2]
[341297150,1730742721019,-1486.93,0.0003863,2]
[341297151,1730742721028,-1253.18,0.0003863,2]
[341297152,1730742721037,-733.3,0.0003863,2]
[341297153,1730742721046,-650.17,0.0003863,2]
[341297154,1730742721055,-807.65,0.0003863,2]
[341297155,1730742721064,-1233.65299828,0.00038729,2]
[341297156,1730742721074,-4426.83521025,0.00038729,2]
[341297157,1730742721347,-7612.17971087,0.00038729,2]
[341297158,1730742721358,-770.98962539,0.00038729,2]
[341297159,1730742721367,-152.0,0.00038785,4]
[341297160,1730742721376,-509.0,0.00038827,7]
[341297161,1730742721386,-211.103858,0.00038835,14]
[341297162,1730742721395,-275.42437,0.00038835,14]
[341297163,1730742721404,-167.15,0.00038842,2]
[341297164,1730742721413,-500.0,0.00038849,120]
[341297165,1730742721422,-500.0,0.00038849,120]
[341297166,1730742721431,-500.0,0.00038849,120]
[341297167,1730742721440,-576.0,0.00038849,120]
[341297168,1730742721450,-250.61,0.00038885,30]
[341297169,1730742721459,-221.81,0.000389,14]
[341297170,1730742721468,-528.38,0.00038901,2]
[341297171,1730742721478,-723.76,0.00038901,2]
[341297172,1730742721488,-1062.99,0.00038901,2]
[341297173,1730742721497,-508.17,0.00038901,2]
[341297174,1730742721506,-903.75,0.00038901,2]
[341297175,1730742721516,-1000.0,0.00038901,2]
[341297176,1730742721525,-151.0,0.00038901,14]
[341297177,1730742721535,-151.0,0.00038901,14]
[341297178,1730742721544,-151.0,0.00038901,14]
[341297179,1730742721556,-515.07,0.00038904,2]
[341297180,1730742721565,-715.3,0.00038904,2]
[341297181,1730742721575,-575.14,0.00038904,2]
[341297182,1730742721584,-151.0,0.00038904,7]
[341297183,1730742721594,-151.0,0.00038904,7]
[341297184,1730742721603,-652.56,0.00038904,2]
[341297185,1730742721613,-535.06,0.00038904,2]
[341297186,1730742721622,-600.68,0.00038904,2]
[341297187,1730742721632,-611.09,0.00038904,2]
[341297188,1730742721642,-151.0,0.00038904,14]
[341297189,1730742721651,-781.33,0.00038904,2]
[341297190,1730742721660,-165.547922,0.00038904,14]
[341297191,1730742721669,-151.0,0.00038904,14]
[341297192,1730742721679,-166.138245,0.00038904,14]
[341297193,1730742721688,-698.73,0.00038904,2]
[341297194,1730742721697,-557.68,0.00038904,2]
[341297195,1730742721707,-1417.47,0.00038904,2]
[341297196,1730742721716,-826.6,0.00038904,2]
[341297197,1730742721725,-914.52,0.00038904,2]
[341297198,1730742721735,-574.52,0.00038904,2]
[341297199,1730742721744,-293.89,0.00038904,2]
[341297200,1730742721753,-2019.64,0.00038904,2]
[341297201,1730742721763,-2888.83,0.00038904,2]
[341297202,1730742721772,-310.9719509,0.00038904,2]
[341297203,1730742721782,-222.68375954,0.00038904,2]
[341297204,1730742721791,-670.23,0.00038904,2]
[341297205,1730742721800,-808.56,0.00038904,2]
[341297206,1730742721809,-279.98955806,0.00038904,2]
[341297207,1730742721820,-772.27,0.00038904,2]
[341297208,1730742721830,-1796.31,0.00038904,2]
[341297209,1730742721840,-892.76,0.00038904,2]
[341297210,1730742721850,-1079.31,0.00038904,2]
[341297211,1730742721859,-1578.1,0.00038904,2]
[341297212,1730742721872,-548.32,0.00038904,2]
[341297213,1730742721883,-648.18,0.00038904,2]
[341297214,1730742721891,-1746.57,0.00038904,2]
[341297215,1730742721901,-584.05,0.00038904,2]
[341297216,1730742721911,-874.94,0.00038904,2]
[341297217,1730742721920,-1114.7,0.00038904,2]
[341297218,1730742721928,-749.38,0.00038904,2]
[341297219,1730742721939,-514.3,0.00038904,2]
[341297220,1730742721950,-686.19,0.00038904,2]
[341297221,1730742721960,-937.69,0.00038904,2]
[341297222,1730742721969,-951.16,0.00038904,2]
[341297223,1730742721978,-796.06,0.00038904,2]
[341297224,1730742721987,-1490.66,0.00038904,2]
[341297225,1730742721996,-1020.75,0.00038904,2]
[341297226,1730742722005,-940.86,0.00038904,2]
[341297227,1730742722015,-562.81,0.00038904,2]
[341297228,1730742722025,-582.98,0.00038904,2]
[341297229,1730742722036,-806.05,0.00038904,2]
[341297230,1730742722047,-1395.9,0.00038904,2]
[341297231,1730742722058,-543.31,0.00038904,2]
[341297232,1730742722067,-757.63,0.00038904,2]
[341297233,1730742722076,-594.4,0.00038904,2]
[341297234,1730742722086,-856.45,0.00038904,2]
[341297235,1730742722096,-951.82,0.00038904,2]
[341297236,1730742722241,-500.0,0.00038904,2]
[341297237,1730742722252,-500.0,0.00038904,2]
[341297238,1730742722264,-515.42,0.00038904,2]
[341297239,1730742722274,-152.0,0.00038904,2]
[341297240,1730742722284,-500.0,0.00038904,2]
[341297241,1730742722295,-1338.47,0.00038904,2]
[341297242,1730742722306,-1030.08,0.00038904,2]
[341297243,1730742722315,-1486.93,0.00038904,2]
[341297244,1730742722325,-1253.18,0.00038904,2]
[341297245,1730742722335,-733.3,0.00038904,2]
[341297246,1730742722344,-650.17,0.00038904,2]
[341297247,1730742722353,-807.65,0.00038904,2]
[341297248,1730742722363,-999.0,0.00039041,120]
[341297249,1730742722373,-201.97128,0.00039088,7]
[341297250,1730742722384,-2000.0,0.000391,38]
[341297251,1730742722394,-504.871948,0.000391,38]
[341297252,1730742722404,-300.1,0.000391,34]
[341297253,1730742722414,-1000.78,0.000391,34]
[341297254,1730742722424,-2000.0,0.0003911,38]
[341297255,1730742722433,-3517.182907,0.0003912,38]
[341297256,1730742722443,-528.38,0.00039175,2]
[341297257,1730742722452,-723.76,0.00039175,2]
[341297258,1730742722462,-1062.99,0.00039175,2]
[341297259,1730742722472,-508.17,0.00039175,2]
[341297260,1730742722481,-903.75,0.00039175,2]
[341297261,1730742722492,-515.15535137,0.00039178,2]
[341297262,1730742722502,-715.49500973,0.00039178,2]
[341297263,1730742722512,-575.35016836,0.00039178,2]
[341297264,1730742722522,-652.78031286,0.00039178,2]
[341297265,1730742722531,-535.12503688,0.00039178,2]
[341297266,1730742722541,-600.90182239,0.00039178,2]
[341297267,1730742722551,-611.23715513,0.00039178,2]
[341297268,1730742722563,-781.36626233,0.00039178,2]
[341297269,1730742722572,-698.75243607,0.00039178,2]
[341297270,1730742722582,-557.90251569,0.00039178,2]
[341297271,1730742722592,-1417.49116609,0.00039178,2]
[341297272,1730742722602,-826.8266293,0.00039178,2]
[341297273,1730742722611,-914.56842554,0.00039178,2]
[341297274,1730742722620,-574.6,0.00039178,2]
[341297275,1730742722630,-294.0,0.00039178,2]
[341297276,1730742722640,-2019.66342928,0.00039178,2]
[341297277,1730742722650,-2888.9266753,0.00039178,2]
[341297278,1730742722660,-670.23480285,0.00039178,2]
[341297279,1730742722670,-808.69054555,0.00039178,2]
[341297280,1730742722680,-772.27,0.00039178,2]
[341297281,1730742722690,-1796.41897014,0.00039178,2]
[341297282,1730742722701,-892.86,0.00039178,2]
[341297283,1730742722710,-1079.31,0.00039178,2]
[341297284,1730742722720,-1578.20896972,0.00039178,2]
[341297285,1730742722729,-548.38,0.00039178,2]
[341297286,1730742722739,-648.3,0.00039178,2]
[341297287,1730742722749,-1746.58817209,0.00039178,2]
[341297288,1730742722759,-584.25,0.00039178,2]
[341297289,1730742722770,-875.06756238,0.00039178,2]
[341297290,1730742722779,-1114.93,0.00039178,2]
[341297291,1730742722789,-749.41656583,0.00039178,2]
[341297292,1730742722799,-514.46,0.00039178,2]
[341297293,1730742722808,-686.25890105,0.00039178,2]
[341297294,1730742722818,-937.89768864,0.00039178,2]
[341297295,1730742722828,-951.18,0.00039178,2]
[341297296,1730742722838,-796.24,0.00039178,2]
[341297297,1730742722848,-1490.69222293,0.00039178,2]
[341297298,1730742722857,-1020.9,0.00039178,2]
[341297299,1730742722868,-940.98,0.00039178,2]
[341297300,1730742722885,-563.03505539,0.00039178,2]
[341297301,1730742722895,-583.03,0.00039178,2]
[341297302,1730742722905,-806.24298807,0.00039178,2]
[341297303,1730742722916,-1396.04,0.00039178,2]
[341297304,1730742722927,-543.40115503,0.00039178,2]
[341297305,1730742722936,-757.76,0.00039178,2]
[341297306,1730742722947,-594.45,0.00039178,2]
[341297307,1730742722956,-856.59,0.00039178,2]
[341297308,1730742722967,-951.86878141,0.00039178,2]
[341297309,1730742722979,-240.73,0.00039178,2]
[341297310,1730742722988,-461.0,0.00039178,2]
[341297311,1730742722998,-515.61,0.00039178,2]
[341297312,1730742723007,-443.94,0.00039178,2]
[341297313,1730742723016,-1338.4949282,0.00039178,2]
[341297314,1730742723025,-1030.08,0.00039178,2]
[341297315,1730742723035,-1487.15,0.00039178,2]
[341297316,1730742723044,-1253.2216024,0.00039178,2]
[341297317,1730742723053,-733.44,0.00039178,2]
[341297318,1730742723062,-650.27,0.00039178,2]
[341297319,1730742723072,-807.75,0.00039178,2]
[341297320,1730742723082,-201.97128,0.00039288,7]
[341297321,1730742723091,-528.3850392,0.00039449,2]
[341297322,1730742723101,-723.81410092,0.00039449,2]
[341297323,1730742723111,-1063.08547847,0.00039449,2]
[341297324,1730742723120,-508.1992351,0.00039449,2]
[341297325,1730742723130,-903.96574512,0.00039449,2]
[341297326,1730742723140,-434.83,0.00039487,2]
[341297327,1730742723150,-201.97128,0.00039488,7]
[341297328,1730742723159,-151.54,0.00039552,120]
[341297329,1730742723169,-201.97128,0.00039688,7]
[341297330,1730742723178,-999.0,0.00039726,120]
[341297331,1730742723188,-451.0,0.00039767,2]
[341297332,1730742723197,-1987.0,0.00039767,2]
[341297333,1730742723207,-1272.0,0.00039767,2]
[341297334,1730742723216,-2206.0,0.00039767,2]
[341297335,1730742723226,-812.0,0.00039767,2]
[341297336,1730742723235,-154.0,0.00039767,2]
[341297337,1730742723244,-4665.383,0.00039767,2]
[341297338,1730742723254,-5911.0,0.00039767,2]
[341297339,1730742723263,-150.0,0.00039767,2]